[Event "Netanya Open 2019"]
[Site "Netanya"]
[Date "2019.06.28"]
[Round "6.26"]
[White "Levi, Netanel"]
[Black "Goikhman, Valentin"]
[Result "0-1"]
[ECO "B52"]
[WhiteElo "2143"]
[BlackElo "2320"]
[Annotator "NA"]
[PlyCount "118"]
[EventDate "2019.06.23"]
[EventType "swiss"]
[EventCountry "ISR"]
[SourceTitle "playchess.com"]
[Source "ChessBase"]
[SourceQuality "1"]
[TimeControl "40/5400+30:1800+30"]

1. e4 {[%emt 0:00:00]} c5 {[%emt 0:00:00]} 2. Nf3 {[%emt 0:00:00]} d6 {[%emt 0:00:00]} 3. Bb5+ {[%emt 0:00:06]} Bd7 {[%emt 0:00:07]} 4. Bxd7+ {[%emt 0:00:03]} Qxd7 {[%emt 0:00:12]} 5. c4 {[%emt 0:00:07]} Nc6 {[%emt 0:04:31]} 6. d4 {[%emt 0:00:10]} cxd4 {[%emt 0:00:31]} 7. Nxd4 {[%emt 0:00:03]} Nf6 {[%emt 0:01:00]} 8. Nc3 {[%emt 0:00:07]} e6 {[%emt 0:06:08]} 9. b3 {[%emt 0:02:34]} Be7 {[%emt 0:10:55]} 10. Bb2 {[%emt 0:00:35]} O-O {[%emt 0:00:33]} 11. O-O {[%emt 0:00:03]} Rfd8 {[%emt 0:01:12]} 12. Nxc6 {[%emt 0:02:37]} Qxc6 {[%emt 0:03:32]} 13. Qe2 {[%emt 0:00:47]} a6 {[%emt 0:04:10]} 14. f3 {[%emt 0:04:29]} Rac8 {[%emt 0:10:48]} 15. Rac1 {[%emt 0:03:25]} h6 {[%emt 0:05:05]} 16. Kh1 {[%emt 0:00:44]} Bf8 {[%emt 0:02:08]} 17. f4 {[%emt 0:02:07]} Rc7 {[%emt 0:22:47]} 18. e5 {[%emt 0:08:54]} Ne8 {[%emt 0:02:28]} 19. Ne4 {[%emt 0:09:40]} Rcd7 {[%emt 0:04:53]} 20. Rc3 {[%emt 0:03:48]} d5 {[%emt 0:03:16]} 21. cxd5 {[%emt 0:03:15]} Qxd5 {[%emt 0:00:08]} 22. h3 {[%emt 0:00:01]} g6 {[%emt 0:03:37]} 23. Rg3 {[%emt 0:06:05]} Be7 {[%emt 0:03:58]} 24. Kh2 {[%emt 0:06:09]} Kf8 {[%emt 0:09:06]} 25. Qe3 {[%emt 0:08:05]} Qd3 {[%emt 0:00:41]} 26. Qe1 {[%emt 0:06:45]} Qc2 {[%emt 0:00:26]} 27. Rf2 {[%emt 0:02:00]} Rd1 {[%emt 0:00:34]} 28. Rxc2 {[%emt 0:03:48]} Rxe1 {[%emt 0:00:02]} 29. Nf6 {[%emt 0:00:02]} Rf1 {[%emt 0:01:09]} 30. Rgc3 {[%emt 0:01:29]} Nxf6 {[%emt 0:00:30]} 31. exf6 {[%emt 0:00:47]} Bxf6 {[%emt 0:00:18]} 32. Rd3 {[%emt 0:03:19]} Bh4 {[%emt 0:00:41]} 33. Rxd8+ {[%emt 0:09:14]} Bxd8 {[%emt 0:00:01]} 34. Rc8 {[%emt 0:00:01]} Ke7 {[%emt 0:00:27]} 35. Rb8 {[%emt 0:00:15]} Rxf4 {[%emt 0:01:00]} 36. Rxb7+ {[%emt 0:00:37]} Kd6 {[%emt 0:00:10]} 37. Ra7 {[%emt 0:06:03]} a5 {[%emt 0:00:24]} 38. Bc3 {[%emt 0:03:18]} Rf5 {[%emt 0:00:27]} 39. b4 {[%emt 0:02:36]} axb4 {[%emt 0:00:55]} 40. Bxb4+ {[%emt 0:00:01]} Kc6 {[%emt 0:00:33]} 41. g4 {[%emt 0:31:27]} Rf4 {[%emt 0:30:22]} 42. a3 {[%emt 0:00:52]} Bb6 {[%emt 0:00:35]} 43. Ra8 {[%emt 0:05:02]} Kd5 {[%emt 0:00:32]} 44. Ra6 {[%emt 0:00:00]} Bd4 {[%emt 0:00:35]} 45. Kg3 {[%emt 0:00:00]} Ke4 {[%emt 0:00:00]} 46. Bf8 {[%emt 0:00:00]} Rf3+ {[%emt 0:00:00]} 47. Kg2 {[%emt 0:00:00]} Rf2+ {[%emt 0:00:00]} 48. Kg3 {[%emt 0:00:00]} Rb2 {[%emt 0:00:00]} 49. Ra4 {[%emt 0:00:00]} Rb3+ {[%emt 0:00:00]} 50. Kg2 {[%emt 0:00:00]} h5 {[%emt 0:00:00]} 51. Rb4 {[%emt 0:00:00]} Rc3 {[%emt 0:00:00]} 52. gxh5 {[%emt 0:00:00]} gxh5 {[%emt 0:00:00]} 53. a4 {[%emt 0:00:00]} Rc2+ {[%emt 0:00:00]} 54. Kg3 {[%emt 0:00:00]} f5 {[%emt 0:00:00]} 55. a5 {[%emt 0:00:00]} Ra2 {[%emt 0:00:00]} 56. Kh4 {[%emt 0:00:00]} f4 {[%emt 0:00:00]} 57. Kxh5 {[%emt 0:00:00]} f3 {[%emt 0:00:00]} 58. Rb1 {[%emt 0:00:00]} f2 {[%emt 0:00:00]} 59. Kg4 {[%emt 0:00:40]} Ra1 {[%emt 0:00:00]} 0-1

[Event "Netanya Open 2019"]
[Site "Netanya"]
[Date "2019.06.28"]
[Round "6.27"]
[White "Rozen, Eytan"]
[Black "Hoffmann, Yair"]
[Result "1-0"]
[ECO "D48"]
[WhiteElo "2317"]
[BlackElo "2140"]
[Annotator "NA"]
[PlyCount "241"]
[EventDate "2019.06.23"]
[EventType "swiss"]
[EventCountry "ISR"]
[SourceTitle "playchess.com"]
[Source "ChessBase"]
[SourceQuality "1"]
[TimeControl "40/5400+30:1800+30"]

1. c4 {[%emt 0:00:00]} c6 {[%emt 0:00:00]} 2. d4 {[%emt 0:00:50]} d5 {[%emt 0:00:00]} 3. Nf3 {[%emt 0:00:33]} Nf6 {[%emt 0:00:07]} 4. Nc3 {[%emt 0:00:15]} e6 {[%emt 0:00:12]} 5. e3 {[%emt 0:00:09]} Nbd7 {[%emt 0:00:13]} 6. Bd3 {[%emt 0:00:20]} dxc4 {[%emt 0:01:03]} 7. Bxc4 {[%emt 0:00:03]} b5 {[%emt 0:00:10]} 8. Bd3 {[%emt 0:00:36]} Bb7 {[%emt 0:00:32]} 9. O-O {[%emt 0:00:22]} a6 {[%emt 0:01:03]} 10. e4 {[%emt 0:00:26]} c5 {[%emt 0:02:13]} 11. e5 {[%emt 0:03:35]} Nd5 {[%emt 0:15:17]} 12. Ng5 {[%emt 0:17:05]} Nxc3 {[%emt 0:18:20]} 13. bxc3 {[%emt 0:01:17]} Be7 {[%emt 0:00:22]} 14. Be4 {[%emt 0:11:53]} Bxg5 {[%emt 0:07:57]} 15. Bxb7 {[%emt 0:12:49]} Ra7 {[%emt 0:00:13]} 16. Bxg5 {[%emt 0:02:16]} Qxg5 {[%emt 0:00:38]} 17. Be4 {[%emt 0:02:10]} O-O {[%emt 0:10:29]} 18. f4 {[%emt 0:00:52]} Qe7 {[%emt 0:00:48]} 19. a4 {[%emt 0:09:43]} cxd4 {[%emt 0:10:36]} 20. cxd4 {[%emt 0:03:11]} bxa4 {[%emt 0:01:31]} 21. Qxa4 {[%emt 0:06:30]} Rd8 {[%emt 0:05:42]} 22. Rfd1 {[%emt 0:01:31]} Nf8 {[%emt 0:02:14]} 23. Rd3 {[%emt 0:03:41]} Qc7 {[%emt 0:02:35]} 24. Rad1 {[%emt 0:03:29]} Ng6 {[%emt 0:00:32]} 25. g3 {[%emt 0:01:06]} Ne7 {[%emt 0:01:07]} 26. d5 {[%emt 0:01:45]} Qc5+ {[%emt 0:02:10]} 27. Qd4 {[%emt 0:02:06]} Qxd4+ {[%emt 0:00:07]} 28. Rxd4 {[%emt 0:00:01]} exd5 {[%emt 0:00:38]} 29. Bxd5 {[%emt 0:00:36]} Nxd5 {[%emt 0:00:11]} 30. Rxd5 {[%emt 0:00:11]} Rxd5 {[%emt 0:00:07]} 31. Rxd5 {[%emt 0:00:01]} g6 {[%emt 0:01:07]} 32. Ra5 {[%emt 0:00:39]} Kf8 {[%emt 0:01:02]} 33. Kf2 {[%emt 0:02:12]} Ke7 {[%emt 0:01:04]} 34. Ke3 {[%emt 0:00:45]} Ke6 {[%emt 0:00:50]} 35. Ke4 {[%emt 0:04:37]} f6 {[%emt 0:01:24]} 36. h4 {[%emt 0:00:46]} fxe5 {[%emt 0:00:43]} 37. fxe5 {[%emt 0:00:41]} Ra8 {[%emt 0:00:43]} 38. g4 {[%emt 0:05:50]} h6 {[%emt 0:00:37]} 39. Kd4 {[%emt 0:02:19]} Rd8+ {[%emt 0:02:01]} 40. Ke4 {[%emt 0:01:50]} Ra8 {[%emt 0:00:06]} 41. h5 {[%emt 0:08:20]} Kf7 {[%emt 0:05:37]} 42. Rc5 {[%emt 0:06:39]} gxh5 {[%emt 0:01:11]} 43. gxh5 {[%emt 0:00:02]} a5 {[%emt 0:00:41]} 44. Kf5 {[%emt 0:05:52]} Ra7 {[%emt 0:00:19]} 45. Rc6 {[%emt 0:00:38]} a4 {[%emt 0:03:51]} 46. Rxh6 {[%emt 0:00:58]} Kf8 {[%emt 0:01:23]} 47. Rf6+ {[%emt 0:05:59]} Kg7 {[%emt 0:02:37]} 48. Rg6+ {[%emt 0:01:19]} Kf8 {[%emt 0:00:22]} 49. Rf6+ {[%emt 0:00:01]} Kg7 {[%emt 0:00:12]} 50. Rg6+ {[%emt 0:00:01]} Kf8 {[%emt 0:00:24]} 51. h6 {[%emt 0:04:23]} a3 {[%emt 0:00:35]} 52. Rg1 {[%emt 0:00:37]} a2 {[%emt 0:07:45]} 53. Ra1 {[%emt 0:00:02]} Rf7+ {[%emt 0:01:24]} 54. Kg6 {[%emt 0:01:13]} Rf2 {[%emt 0:00:15]} 55. h7 {[%emt 0:01:19]} Rg2+ {[%emt 0:00:06]} 56. Kh6 {[%emt 0:00:33]} Rh2+ {[%emt 0:00:05]} 57. Kg6 {[%emt 0:00:01]} Rg2+ {[%emt 0:00:06]} 58. Kf6 {[%emt 0:00:05]} Rf2+ {[%emt 0:00:04]} 59. Kg6 {[%emt 0:01:52]} Rg2+ {[%emt 0:00:08]} 60. Kf5 {[%emt 0:00:17]} Kg7 {[%emt 0:00:44]} 61. Rh1 {[%emt 0:00:41]} Kh8 {[%emt 0:00:05]} 62. e6 {[%emt 0:00:33]} Rf2+ {[%emt 0:00:57]} 63. Kg5 {[%emt 0:00:32]} Re2 {[%emt 0:00:16]} 64. Kf5 {[%emt 0:00:25]} Rf2+ {[%emt 0:00:09]} 65. Ke5 {[%emt 0:00:10]} Re2+ {[%emt 0:00:17]} 66. Kd6 {[%emt 0:00:15]} Rd2+ {[%emt 0:00:07]} 67. Ke5 {[%emt 0:00:04]} Re2+ {[%emt 0:00:04]} 68. Kd6 {[%emt 0:00:09]} Rd2+ {[%emt 0:00:07]} 69. Kc6 {[%emt 0:00:07]} Rc2+ {[%emt 0:00:10]} 70. Kd5 {[%emt 0:00:43]} Rd2+ {[%emt 0:00:14]} 71. Kc5 {[%emt 0:00:10]} Rc2+ {[%emt 0:00:09]} 72. Kd5 {[%emt 0:00:09]} Rd2+ {[%emt 0:00:08]} 73. Kc6 {[%emt 0:00:02]} Rc2+ {[%emt 0:00:08]} 74. Kd7 {[%emt 0:00:33]} Rd2+ {[%emt 0:00:08]} 75. Kc8 {[%emt 0:00:11]} Rc2+ {[%emt 0:00:06]} 76. Kd7 {[%emt 0:00:06]} Rd2+ {[%emt 0:00:03]} 77. Ke8 {[%emt 0:01:08]} Rh2 {[%emt 0:00:50]} 78. Rg1 {[%emt 0:02:25]} Rg2 {[%emt 0:00:25]} 79. Rh1 {[%emt 0:00:47]} Rh2 {[%emt 0:00:09]} 80. Rf1 {[%emt 0:01:05]} Rf2 {[%emt 0:00:23]} 81. Ra1 {[%emt 0:00:30]} Re2 {[%emt 0:01:15]} 82. e7 {[%emt 0:00:27]} Rd2 {[%emt 0:01:05]} 83. Rf1 {[%emt 0:00:29]} Rf2 {[%emt 0:00:45]} 84. Kd7 {[%emt 0:00:33]} Rxf1 {[%emt 0:08:16]} 85. e8=Q+ {[%emt 0:00:20]} Kxh7 {[%emt 0:00:08]} 86. Qe4+ {[%emt 0:00:18]} Kh8 {[%emt 0:00:26]} 87. Qa8+ {[%emt 0:00:30]} Kh7 {[%emt 0:00:13]} 88. Qe4+ {[%emt 0:00:01]} Kh8 {[%emt 0:00:09]} 89. Qh4+ {[%emt 0:01:16]} Kg8 {[%emt 0:00:15]} 90. Qg3+ {[%emt 0:00:32]} Kf8 {[%emt 0:00:29]} 91. Qa3+ {[%emt 0:00:28]} Kg7 {[%emt 0:00:12]} 92. Qb2+ {[%emt 0:00:26]} Kf8 {[%emt 0:00:23]} 93. Qa3+ {[%emt 0:00:37]} Kg7 {[%emt 0:00:07]} 94. Qb2+ {[%emt 0:00:29]} Kf8 {[%emt 0:23:49]} 95. Qxa2 {[%emt 0:00:00]} Rd1+ {[%emt 0:00:00]} 96. Ke6 {[%emt 0:00:00]} Re1+ {[%emt 0:00:00]} 97. Kf6 {[%emt 0:00:00]} Rf1+ {[%emt 0:00:00]} 98. Ke5 {[%emt 0:00:00]} Re1+ {[%emt 0:00:00]} 99. Kd5 {[%emt 0:00:00]} Rd1+ {[%emt 0:00:00]} 100. Kc5 {[%emt 0:00:00]} Rc1+ {[%emt 0:00:00]} 101. Kd6 {[%emt 0:00:00]} Rd1+ {[%emt 0:00:00]} 102. Kc6 {[%emt 0:00:00]} Rc1+ {[%emt 0:00:00]} 103. Kb6 {[%emt 0:00:00]} Rf1 {[%emt 0:00:00]} 104. Qe2 {[%emt 0:00:07]} Rf6+ {[%emt 0:00:00]} 105. Kc5 {[%emt 0:00:18]} Kf7 {[%emt 0:00:00]} 106. Qe4 {[%emt 0:00:55]} Kg7 {[%emt 0:00:00]} 107. Kd5 {[%emt 0:00:15]} Ra6 {[%emt 0:00:00]} 108. Qg4+ {[%emt 0:00:56]} Kf7 {[%emt 0:00:00]} 109. Qc4 {[%emt 0:00:40]} Re6 {[%emt 0:00:00]} 110. Qc7+ {[%emt 0:00:28]} Re7 {[%emt 0:00:00]} 111. Qf4+ {[%emt 0:00:15]} Ke8 {[%emt 0:00:00]} 112. Qf5 {[%emt 0:00:41]} Re1 {[%emt 0:00:00]} 113. Kd6 {[%emt 0:01:13]} Rd1+ {[%emt 0:00:00]} 114. Ke6 {[%emt 0:00:02]} Kd8 {[%emt 0:00:00]} 115. Qg5+ {[%emt 0:01:16]} Kc8 {[%emt 0:00:00]} 116. Qc5+ {[%emt 0:00:46]} Kd8 {[%emt 0:00:00]} 117. Qa5+ {[%emt 0:00:51]} Kc8 {[%emt 0:00:00]} 118. Qc3+ {[%emt 0:00:09]} Kd8 {[%emt 0:00:00]} 119. Qb3 {[%emt 0:00:07]} Rc1 {[%emt 0:00:00]} 120. Qb8+ {[%emt 0:00:08]} Rc8 {[%emt 0:00:00]} 121. Qd6+ {[%emt 0:00:05]} 1-0

[Event "Netanya Open 2019"]
[Site "Netanya"]
[Date "2019.06.28"]
[Round "6.28"]
[White "Aharon, Ofir"]
[Black "Yaniv, Yuval"]
[Result "1-0"]
[ECO "B40"]
[WhiteElo "2302"]
[BlackElo "2120"]
[Annotator "NA"]
[PlyCount "75"]
[EventDate "2019.06.23"]
[EventType "swiss"]
[EventCountry "ISR"]
[SourceTitle "playchess.com"]
[Source "ChessBase"]
[SourceQuality "1"]
[TimeControl "40/5400+30:1800+30"]

1. e4 {[%emt 0:01:56]} c5 {[%emt 0:00:00]} 2. Nf3 {[%emt 0:00:07]} e6 {[%emt 0:00:00]} 3. b3 {[%emt 0:00:08]} a6 {[%emt 0:01:13]} 4. Bb2 {[%emt 0:00:56]} Nc6 {[%emt 0:00:16]} 5. d4 {[%emt 0:04:44]} cxd4 {[%emt 0:00:18]} 6. Nxd4 {[%emt 0:00:06]} Bb4+ {[%emt 0:00:48]} 7. c3 {[%emt 0:03:48]} Be7 {[%emt 0:00:09]} 8. Bd3 {[%emt 0:01:32]} Nf6 {[%emt 0:02:07]} 9. Nxc6 {[%emt 0:02:33]} bxc6 {[%emt 0:03:29]} 10. e5 {[%emt 0:00:50]} Nd5 {[%emt 0:00:12]} 11. O-O {[%emt 0:01:10]} Qc7 {[%emt 0:26:53]} 12. c4 {[%emt 0:07:39]} Nf4 {[%emt 0:00:15]} 13. Be4 {[%emt 0:01:23]} Bb7 {[%emt 0:02:07]} 14. Nd2 {[%emt 0:03:23]} f5 {[%emt 0:05:54]} 15. exf6 {[%emt 0:02:10]} Bxf6 {[%emt 0:02:06]} 16. Bxf6 {[%emt 0:01:41]} gxf6 {[%emt 0:00:02]} 17. g3 {[%emt 0:06:02]} Ng6 {[%emt 0:07:33]} 18. c5 {[%emt 0:00:48]} f5 {[%emt 0:01:14]} 19. Bg2 {[%emt 0:02:03]} Qe5 {[%emt 0:19:29]} 20. Rc1 {[%emt 0:05:02]} Ke7 {[%emt 0:02:37]} 21. Re1 {[%emt 0:00:54]} Qd4 {[%emt 0:04:46]} 22. Rc4 {[%emt 0:01:01]} Qf6 {[%emt 0:00:45]} 23. Rb4 {[%emt 0:01:26]} Ra7 {[%emt 0:06:09]} 24. Nc4 {[%emt 0:00:23]} Bc8 {[%emt 0:00:50]} 25. Qd6+ {[%emt 0:03:14]} Kf7 {[%emt 0:00:06]} 26. Qb8 {[%emt 0:00:33]} Ra8 {[%emt 0:01:58]} 27. Qxa8 {[%emt 0:01:17]} Qc3 {[%emt 0:00:01]} 28. Rb8 {[%emt 0:06:55]} Qxe1+ {[%emt 0:00:02]} 29. Bf1 {[%emt 0:00:08]} Nh4 {[%emt 0:01:53]} 30. Rxc8 {[%emt 0:00:54]} Nf3+ {[%emt 0:00:10]} 31. Kg2 {[%emt 0:00:01]} Qd1 {[%emt 0:00:12]} 32. Ne5+ {[%emt 0:09:25]} Nxe5 {[%emt 0:00:16]} 33. Rxh8 {[%emt 0:00:03]} Qd5+ {[%emt 0:02:40]} 34. Kh3 {[%emt 0:00:07]} Ng6 {[%emt 0:00:17]} 35. Rxh7+ {[%emt 0:01:37]} Kf6 {[%emt 0:00:01]} 36. Qd8+ {[%emt 0:00:41]} Ke5 {[%emt 0:00:07]} 37. f4+ {[%emt 0:01:33]} Kd4 {[%emt 0:00:02]} 38. Rxd7 {[%emt 0:00:52]} 1-0

[Event "Netanya Open 2019"]
[Site "Netanya"]
[Date "2019.06.28"]
[Round "6.29"]
[White "Shvayger, Yuliya"]
[Black "Gorshtein, Asaf"]
[Result "1-0"]
[WhiteElo "2373"]
[BlackElo "2109"]
[PlyCount "63"]
[EventDate "2019.06.23"]
[EventType "swiss"]
[EventRounds "9"]
[EventCountry "ISR"]
[TimeControl "40/5400+30:1800+30"]

1. e4 c6 2. d4 d5 3. e5 Bf5 4. Nf3 e6 5. Be2 Ne7 6. O-O Nd7 7. Nbd2 Bg6 8. c4 Nf5 9. cxd5 cxd5 10. Nb3 Be7 11. Bd3 h5 12. g3 a6 13. Bf4 Nf8 14. Rc1 Nh6 15. Nc5 Bxd3 16. Qxd3 Ng6 17. Nxe6 Nxf4 18. Nxf4 Bg5 19. Nxg5 Qxg5 20. Nxd5 O-O 21. f4 Qd8 22. Ne3 Qb6 23. b3 Rfd8 24. Rfd1 Rac8 25. Rc4 Rxc4 26. bxc4 Qb2 27. Rd2 Qc1+ 28. Kg2 h4 29. g4 Rc8 30. g5 h3+ 31. Kxh3 Qh1 32. Rg2 1-0

[Event "Netanya Open 2019"]
[Site "Netanya"]
[Date "2019.06.28"]
[Round "6.30"]
[White "Brenner, Moshe"]
[Black "Gorodetzky, Matan"]
[Result "0-1"]
[WhiteElo "2098"]
[BlackElo "2316"]
[PlyCount "92"]
[EventDate "2019.06.23"]
[EventType "swiss"]
[EventRounds "9"]
[EventCountry "ISR"]
[TimeControl "40/5400+30:1800+30"]

1. d4 d5 2. Nf3 c5 3. e3 Nc6 4. b3 Nf6 5. Bb2 cxd4 6. Nxd4 e6 7. Be2 Bd6 8. Nd2 O-O 9. O-O e5 10. Nb5 a6 11. Nxd6 Qxd6 12. Nf3 Rd8 13. h3 b5 14. a3 Rb8 15. Re1 h6 16. Bf1 Bf5 17. Qe2 d4 18. Rad1 Qc5 19. b4 Qb6 20. exd4 exd4 21. Qd2 Qc7 22. Bd3 Be6 23. Bf1 Bf5 24. Bxd4 Be4 25. Qe3 Bxf3 26. gxf3 Nxd4 27. Rxd4 Qxc2 28. Bd3 Qb2 29. Rxd8+ Rxd8 30. Be4 Re8 31. Qd3 Kh8 32. Re3 Qa1+ 33. Qf1 Qd4 34. Qd3 Qb6 35. Qc2 Qd6 36. Qc5 Qf4 37. Bd3 Rd8 38. Qf5 Qd4 39. Kg2 g6 40. Qc5 Qxc5 41. bxc5 Nd5 42. Be4 Nxe3+ 43. fxe3 a5 44. Kf2 b4 45. axb4 axb4 46. Ke2 b3 0-1

[Event "Netanya Open 2019"]
[Site "Netanya"]
[Date "2019.06.28"]
[Round "6.31"]
[White "Sokolovsky, Yahli"]
[Black "Tifferet, Shaked"]
[Result "0-1"]
[WhiteElo "2054"]
[BlackElo "2236"]
[PlyCount "104"]
[EventDate "2019.06.23"]
[EventType "swiss"]
[EventRounds "9"]
[EventCountry "ISR"]
[TimeControl "40/5400+30:1800+30"]

1. e4 c5 2. Nf3 d6 3. Bb5+ Bd7 4. c4 Nf6 5. Nc3 g6 6. d4 cxd4 7. Nxd4 Bg7 8. f3 Nc6 9. Be3 Rc8 10. Bxc6 bxc6 11. c5 d5 12. e5 Ng8 13. Bf4 Nh6 14. b4 Nf5 15. Nce2 e6 16. Nxf5 exf5 17. h4 Qe7 18. Kf2 O-O 19. Qd2 h5 20. Rae1 a5 21. Nd4 axb4 22. Qxb4 Ra8 23. a4 Rfb8 24. Qa3 Rb7 25. a5 Rba7 26. Bg5 Qe8 27. Nb3 Be6 28. Bd2 Qb8 29. f4 d4 30. Nxd4 Bd5 31. Rb1 Qd8 32. Bc3 Bf8 33. Rbd1 Qc8 34. Rh3 Be7 35. Bb4 Rd7 36. Nf3 Qa6 37. Rc1 Be4 38. Nd2 Rd4 39. Nxe4 Rxe4 40. Rf3 Rb8 41. Be1 Bxh4+ 42. g3 Re2+ 43. Kg1 Rbb2 44. Qd3 Rg2+ 45. Kf1 Rh2 46. Kg1 Rbg2+ 47. Kf1 Qb7 48. Rb1 Qa7 49. gxh4 Qxc5 50. Re3 Ra2 51. Kg1 Rhe2 52. Rb7 Rxe1+ 0-1

[Event "Netanya Open 2019"]
[Site "Netanya"]
[Date "2019.06.28"]
[Round "6.32"]
[White "Levin, Guy"]
[Black "Axelrod, Arie"]
[Result "0-1"]
[WhiteElo "2052"]
[BlackElo "2224"]
[PlyCount "138"]
[EventDate "2019.06.23"]
[EventType "swiss"]
[EventRounds "9"]
[EventCountry "ISR"]
[TimeControl "40/5400+30:1800+30"]

1. c4 Nc6 2. Nc3 e5 3. Nf3 Bb4 4. Nd5 e4 5. Nxb4 Nxb4 6. Nd4 Nf6 7. Nc2 Nc6 8. g3 d5 9. cxd5 Qxd5 10. Bg2 Qh5 11. h3 O-O 12. d4 exd3 13. exd3 Qxd1+ 14. Kxd1 Bf5 15. Bg5 Bxd3 16. Bxf6 gxf6 17. Bxc6 bxc6 18. Kd2 Rad8 19. Kc3 c5 20. Ne3 Rd4 21. Rhd1 Rfd8 22. Rd2 Bb1 23. Re2 Be4 24. Rae1 f5 25. b3 f6 26. Nc4 Kf7 27. f3 Rd3+ 28. Kb2 Rxf3 29. g4 Rd7 30. Nd2 Rxh3 31. Nxe4 fxe4 32. Rxe4 Rh2+ 33. Ka3 Rg2 34. Rh1 Kg6 35. Rc4 Rd5 36. Re1 a6 37. Rec1 Rdd2 38. Ra1 Rc2 39. Ra4 c4 40. bxc4 Rxg4 41. Kb3 Rf2 42. Rxa6 h5 43. Ra8 c5 44. Ka4 Rb2 45. Ka5 Rxc4 46. a4 Rbb4 47. Rg8+ Kh7 48. Rg2 Rg4 49. Rc2 Rg5 50. Ka6 h4 51. a5 h3 52. Rh1 Rb3 53. Ka7 Kg6 54. a6 Kh5 55. Rhc1 Rb5 56. Rf1 Rg2 57. Rc3 h2 58. Rh3+ Kg6 59. Rh1 Rbb2 60. Ka8 c4 61. a7 Kg7 62. Rh7+ Kg6 63. R1xh2 Rxh2 64. Rh6+ Kf5 65. Rxf6+ Ke5 66. Re6+ Kd5 67. Rd6+ Kc5 68. Rc6+ Kb5 69. Rb6+ Kxb6 0-1

[Event "Netanya Open 2019"]
[Site "Netanya"]
[Date "2019.06.28"]
[Round "6.33"]
[White "Parligras, Cosmin"]
[Black "Parnes, Nadav"]
[Result "1-0"]
[WhiteElo "2198"]
[BlackElo "2072"]
[PlyCount "111"]
[EventDate "2019.06.23"]
[EventType "swiss"]
[EventRounds "9"]
[EventCountry "ISR"]
[TimeControl "40/5400+30:1800+30"]

1. Nf3 Nf6 2. d4 g6 3. g3 Bg7 4. Bg2 O-O 5. O-O d6 6. b3 e5 7. dxe5 Ng4 8. Bb2 Nc6 9. Qc1 Ncxe5 10. c4 f5 11. Nxe5 Bxe5 12. e3 c6 13. Nc3 Qe7 14. Qd2 g5 15. f3 Nh6 16. f4 Bf6 17. Rfe1 Qg7 18. Rad1 Rd8 19. Rf1 Nf7 20. Ba1 g4 21. Rfe1 Be6 22. Qc2 d5 23. cxd5 cxd5 24. Nb5 Bxa1 25. Rxa1 Nd6 26. Nd4 Qd7 27. Rac1 Rac8 28. Qd3 Bf7 29. Red1 Rxc1 30. Rxc1 Rc8 31. Rd1 Rc5 32. Ne2 Qc6 33. Rd2 a5 34. Kf2 Kg7 35. Qd4+ Kg6 36. Qe5 Qd7 37. e4 b5 38. Nc3 Qc7 39. exf5+ Nxf5 40. Qxc7 Rxc7 41. Nxd5 Rd7 42. Ke2 Kg7 43. Be4 Nd6 44. Ne3 Re7 45. Rxd6 Rxe4 46. Kd3 Re6 47. Rxe6 Bxe6 48. f5 Bd7 49. Ke4 h5 50. Ke5 Kf7 51. a3 b4 52. axb4 axb4 53. Nd5 Bb5 54. Nxb4 Ke7 55. Nd5+ Kf7 56. Nf4 1-0

[Event "Netanya Open 2019"]
[Site "Netanya"]
[Date "2019.06.28"]
[Round "6.34"]
[White "Karp, Michael"]
[Black "Cohen, Elad"]
[Result "1-0"]
[WhiteElo "2199"]
[BlackElo "1999"]
[PlyCount "61"]
[EventDate "2019.06.23"]
[EventType "swiss"]
[EventRounds "9"]
[EventCountry "ISR"]
[TimeControl "40/5400+30:1800+30"]

1. Nf3 Nf6 2. c4 e6 3. g3 d5 4. Bg2 Be7 5. O-O O-O 6. d4 c5 7. cxd5 Nxd5 8. e4 Nf6 9. Nc3 b6 10. d5 exd5 11. e5 Ne8 12. Qxd5 Nc7 13. Qxd8 Rxd8 14. Ng5 f6 15. exf6 gxf6 16. Bf4 Nba6 17. Rfe1 fxg5 18. Bxc7 Nxc7 19. Rxe7 Rd7 20. Rxd7 Bxd7 21. Bxa8 Nxa8 22. Ne4 Bc6 23. Nxg5 Nc7 24. Re1 h6 25. Ne6 Nd5 26. a3 Bd7 27. Re5 Nf6 28. Nf4 Kf7 29. Nd5 Be6 30. Nxf6 Kxf6 31. f4 1-0

[Event "Netanya Open 2019"]
[Site "Netanya"]
[Date "2019.06.28"]
[Round "6.35"]
[White "Gov, Guy"]
[Black "Streltsov, Alexey"]
[Result "0-1"]
[WhiteElo "2006"]
[BlackElo "2170"]
[PlyCount "106"]
[EventDate "2019.06.23"]
[EventType "swiss"]
[EventRounds "9"]
[EventCountry "ISR"]
[TimeControl "40/5400+30:1800+30"]

1. d4 Nf6 2. Nc3 d5 3. Bf4 Bf5 4. f3 e6 5. g4 Bg6 6. h4 h5 7. g5 Nfd7 8. e3 Bd6 9. Nh3 a6 10. Bd3 Bxd3 11. Qxd3 Nf8 12. Bxd6 Qxd6 13. Nf4 Nc6 14. g6 Nxg6 15. Nxg6 Qg3+ 16. Kd2 Qxg6 17. Qxg6 fxg6 18. Rag1 Ne7 19. Ne2 O-O 20. Nf4 Rf6 21. Rg5 Raf8 22. Rhg1 Rxf4 23. exf4 Rxf4 24. Re5 Kf7 25. Rge1 Rxd4+ 26. Kc1 Rxh4 27. Rxe6 Nf5 28. R6e5 c6 29. Kd2 Rf4 30. Ke2 g5 31. c3 h4 32. Rg1 h3 33. Kf2 h2 34. Rh1 g4 35. Kg2 g3 36. Rhe1 g5 37. Rh1 Kf6 38. Re8 g4 39. Rf8+ Ke7 40. Rxf5 gxf3+ 41. Kxg3 Rxf5 42. Rxh2 f2 43. Rxf2 Rxf2 44. Kxf2 c5 45. a4 Kd6 46. Kf3 Ke5 47. Ke3 d4+ 48. Kd3 Kd5 49. b3 a5 50. cxd4 cxd4 51. Kd2 Ke4 52. Ke2 d3+ 53. Kd2 Kd4 0-1

[Event "Netanya Open 2019"]
[Site "Netanya"]
[Date "2019.06.28"]
[Round "6.36"]
[White "Gleizer, Mark"]
[Black "Neiman, Maks"]
[Result "1/2-1/2"]
[WhiteElo "2180"]
[BlackElo "1954"]
[PlyCount "62"]
[EventDate "2019.06.23"]
[EventType "swiss"]
[EventRounds "9"]
[EventCountry "ISR"]
[TimeControl "40/5400+30:1800+30"]

1. d4 Nf6 2. Nf3 g6 3. Nbd2 d5 4. e3 Bg7 5. b4 O-O 6. a4 Nbd7 7. Bd3 c6 8. Ba3 Qc7 9. Rb1 Re8 10. O-O e5 11. dxe5 Ng4 12. h3 Ngxe5 13. Nd4 a5 14. b5 c5 15. b6 Nxb6 16. Bb5 Bd7 17. Bxd7 Nexd7 18. Nb5 Qc6 19. c3 Ne5 20. Qc2 Nec4 21. Nxc4 Nxc4 22. Rfd1 b6 23. Rb3 Rad8 24. Bc1 f5 25. Rb1 Re4 26. Ra1 Rd7 27. Ra2 Qe6 28. Qd3 Ne5 29. Qb1 Nc4 30. Qd3 Ne5 31. Qb1 Nc4 1/2-1/2

[Event "Netanya Open 2019"]
[Site "Netanya"]
[Date "2019.06.28"]
[Round "6.37"]
[White "Kochavi, Ori"]
[Black "Pravdivetz, Vladimir"]
[Result "1-0"]
[ECO "C09"]
[WhiteElo "2151"]
[BlackElo "1927"]
[PlyCount "87"]
[EventDate "2019.06.23"]
[EventType "swiss"]
[EventRounds "9"]
[EventCountry "ISR"]
[TimeControl "40/5400+30:1800+30"]

{[%evp 0,20,19,38,43,18,28,33,15,18,15,37,24,30,66,77,59,72,56,6,17,32,11]} 1. e4 e6 2. d4 d5 3. Nd2 c5 4. Ngf3 Nc6 5. exd5 exd5 6. Bb5 a6 7. Bxc6+ bxc6 8. O-O Bd6 9. c4 Ne7 10. cxd5 cxd5 11. dxc5 Bxc5 12. Nb3 Bd6 13. h3 O-O 14. Nbd4 Nf5 15. b3 Nxd4 16. Qxd4 Be7 17. Bb2 Bf6 18. Qd2 Bf5 19. Bxf6 Qxf6 20. Qxd5 Rfd8 21. Qe5 Qxe5 22. Nxe5 Rd2 23. Nc4 Re2 24. Rfe1 Rae8 25. Ne3 Bd3 26. Rxe2 Bxe2 27. Rc1 g6 28. Rc2 Bb5 29. Rc7 Kf8 30. Kh2 Re7 31. Rc8+ Re8 32. Rxe8+ Kxe8 33. Kg3 Ke7 34. Kf4 Kd6 35. Ke4 Kc5 36. a3 f5+ 37. Ke5 Bd3 38. g3 Bb1 39. Nd5 Ba2 40. b4+ Kc6 41. b5+ Kc5 42. Nb4 Kxb5 43. Nxa2 Ka4 44. Nb4 1-0